fUSD/lending_fUSD_20250302
["ID","MTS","AMOUNT","RATE_DAILY","PERIOD"]
[355138215,1740934257003,-796.29,0.00026647,2]
[355138217,1740934257014,-500.0,0.00026647,2]
[355138219,1740934257025,-500.0,0.00026647,2]
[355138221,1740934257035,-512.31,0.00026647,2]
[355138223,1740934257045,-500.0,0.00026647,2]
[355138225,1740934257056,-504.61,0.00026647,2]
[355138227,1740934257066,-500.0,0.00026647,2]
[355138229,1740934257076,-500.0,0.00026647,2]
[355138231,1740934257086,-500.0,0.00026647,2]
[355138233,1740934257096,-613.62,0.00026647,2]
[355138235,1740934257107,-500.0,0.00026647,2]
[355138237,1740934257117,-500.0,0.00026647,2]
[355138239,1740934257126,-500.0,0.00026647,2]
[355138241,1740934257136,-500.0,0.00026647,2]
[355138243,1740934257147,-500.0,0.00026647,2]
[355138245,1740934257156,-500.0,0.00026647,2]
[355138247,1740934257167,-767.83,0.00026647,2]
[355138249,1740934257175,-500.0,0.00026647,2]
[355138251,1740934257185,-776.69,0.00026647,2]
[355138253,1740934257195,-500.0,0.00026647,2]
[355138255,1740934257205,-500.0,0.00026647,2]
[355138257,1740934257215,-523.84,0.00026647,2]
[355138259,1740934257225,-500.0,0.00026647,2]
[355138261,1740934257236,-940.2,0.00026647,2]
[355138263,1740934257251,-500.0,0.00026647,2]
[355138265,1740934257261,-500.0,0.00026647,2]
[355138267,1740934257271,-790.97,0.00026647,2]
[355138269,1740934257282,-500.0,0.00026647,2]
[355138271,1740934257292,-553.5,0.00026647,2]
[355138273,1740934257303,-500.0,0.00026647,2]
[355138275,1740934257312,-247.07703904,0.00026647,2]
[355138277,1740934257322,-500.0,0.00026647,2]
[355138279,1740934257332,-1094.02,0.00026647,2]
[355138281,1740934257343,-600.93,0.00026647,2]
[355138283,1740934257353,-500.0,0.00026647,2]
[355138285,1740934257363,-1052.79,0.00026647,2]
[355138287,1740934257374,-500.0,0.00026647,2]
[355138289,1740934257384,-500.0,0.00026647,2]
[355138291,1740934257395,-500.0,0.00026647,2]
[355138293,1740934257405,-500.0,0.00026647,2]
[355138295,1740934257415,-500.0,0.00026647,7]
[355138297,1740934257424,-500.0,0.00026647,2]
[355138299,1740934257435,-500.0,0.00026647,2]
[355138301,1740934257445,-500.0,0.00026647,2]
[355138303,1740934257455,-500.0,0.00026647,2]
[355138305,1740934257466,-500.0,0.00026647,2]
[355138307,1740934257476,-500.0,0.00026647,2]
[355138309,1740934257486,-500.0,0.00026647,2]
[355138311,1740934257500,-500.0,0.00026647,2]
[355138313,1740934257510,-500.0,0.00026647,2]
[355138315,1740934257519,-588.04,0.00026647,2]
[355138317,1740934257530,-641.32,0.00026647,2]
[355138319,1740934257540,-500.0,0.00026647,2]
[355138321,1740934257550,-500.0,0.00026647,2]
[355138323,1740934257561,-353.15921799,0.00026647,2]
[355138325,1740934257571,-500.0,0.00026647,2]
[355138327,1740934257581,-500.0,0.00026647,2]
[355138345,1740934257757,-500.0,0.00026647,2]
[355138347,1740934257768,-500.0,0.00026647,2]
[355138349,1740934257779,-500.0,0.00026647,120]
[355138351,1740934257790,-884.29,0.00026647,2]
[355138353,1740934257800,-500.0,0.00026647,2]
[355138355,1740934257811,-500.0,0.00026647,2]
[355138357,1740934257822,-1045.02,0.00026647,2]
[355138359,1740934257833,-300.0,0.00026647,2]
[355138361,1740934257843,-414.82325107,0.00026647,2]
[355138363,1740934257853,-500.0,0.00026647,2]
[355138365,1740934257864,-500.0,0.00026647,2]
[355138366,1740934257874,-918.11,0.00026647,2]
[355138368,1740934257884,-500.0,0.00026647,2]
[355138370,1740934257896,-500.0,0.00026647,2]
[355138373,1740934257907,-500.0,0.00026647,2]
[355138375,1740934257918,-500.0,0.00026647,2]
[355138376,1740934257928,-500.0,0.00026647,2]
[355138378,1740934257939,-500.0,0.00026647,2]
[355138381,1740934257949,-505.19244925,0.00026647,2]
[355138383,1740934257960,-500.0,0.00026647,2]
[355138384,1740934257971,-500.0,0.00026647,2]
[355138386,1740934257982,-500.0,0.00026647,2]
[355138388,1740934257997,-500.0,0.00026647,2]
[355138391,1740934258009,-500.0,0.00026647,2]
[355138392,1740934258021,-1046.65,0.00026647,2]
[355138395,1740934258032,-611.05334042,0.00026647,2]
[355138397,1740934258044,-500.0,0.00026647,2]
[355138398,1740934258054,-500.0,0.00026647,2]
[355138400,1740934258064,-500.0,0.00026647,2]
[355138402,1740934258073,-500.0,0.00026647,2]
[355138404,1740934258082,-500.0,0.00026647,2]
[355138406,1740934258093,-500.0,0.00026647,2]
[355138408,1740934258104,-500.0,0.00026647,2]
[355138410,1740934258114,-500.0,0.00026647,2]
[355138412,1740934258125,-500.0,0.00026647,2]
[355138414,1740934258136,-500.0,0.00026647,2]
[355138416,1740934258146,-500.0,0.00026647,2]
[355138419,1740934258157,-500.0,0.00026647,2]
[355138421,1740934258168,-500.0,0.00026647,2]
[355138423,1740934258177,-500.0,0.00026647,2]
[355138425,1740934258187,-500.0,0.00026647,2]
[355138426,1740934258197,-500.0,0.00026647,2]
[355138428,1740934258207,-500.0,0.00026647,2]
[355138430,1740934258216,-500.0,0.00026647,2]
[355138432,1740934258226,-500.0,0.00026647,2]
[355138434,1740934258236,-500.0,0.00026647,2]
[355138436,1740934258252,-500.0,0.00026647,2]
[355138439,1740934258264,-500.0,0.00026647,2]
[355138440,1740934258274,-500.0,0.00026647,2]
[355138442,1740934258285,-500.0,0.00026647,2]
[355138445,1740934258295,-500.0,0.00026647,2]
[355138446,1740934258305,-500.0,0.00026647,2]
[355138448,1740934258314,-500.0,0.00026647,2]
[355138450,1740934258324,-500.0,0.00026647,2]
[355138452,1740934258334,-500.0,0.00026647,2]
[355138455,1740934258344,-500.0,0.00026647,2]
[355138456,1740934258353,-500.0,0.00026647,2]
[355138458,1740934258363,-500.0,0.00026647,2]
[355138461,1740934258374,-500.0,0.00026647,2]
[355138463,1740934258384,-500.0,0.00026647,2]
[355138465,1740934258394,-500.0,0.00026647,2]
[355138467,1740934258405,-500.0,0.00026647,2]
[355138469,1740934258416,-500.0,0.00026647,2]
[355138471,1740934258428,-500.0,0.00026647,2]
[355138473,1740934258438,-500.0,0.00026647,2]
[355138475,1740934258448,-500.0,0.00026647,2]
[355138477,1740934258458,-500.0,0.00026647,2]
[355138479,1740934258469,-500.0,0.00026647,2]
[355138481,1740934258480,-500.0,0.00026647,2]
[355138483,1740934258490,-500.0,0.00026647,2]
[355138485,1740934258503,-500.0,0.00026647,2]
[355138487,1740934258514,-500.0,0.00026647,2]
[355138489,1740934258524,-500.0,0.00026647,2]
[355138491,1740934258534,-500.0,0.00026647,2]
[355138493,1740934258544,-529.8,0.00026647,2]
[355138495,1740934258555,-500.0,0.00026647,2]
[355138497,1740934258566,-500.0,0.00026647,2]
[355138499,1740934258576,-500.0,0.00026647,2]
[355138501,1740934258586,-500.0,0.00026647,2]
[355138503,1740934258597,-543.01603052,0.00026647,2]
[355138505,1740934258609,-500.0,0.00026647,2]
[355138507,1740934258620,-500.0,0.00026673,2]
[355138509,1740934258630,-503.23320906,0.00026673,2]
[355138511,1740934258640,-151.17287557,0.00026673,2]
[355138513,1740934258649,-500.0,0.00026673,2]
[355138515,1740934258659,-500.0,0.00026673,2]
[355138517,1740934258669,-500.0,0.00026673,2]
[355138519,1740934258680,-500.0,0.00026673,2]
[355138521,1740934258691,-359.3106582,0.00026673,2]
[355138523,1740934258702,-160.18310315,0.00026673,2]
[355138525,1740934258712,-150.86540649,0.00026673,2]
[355138527,1740934258726,-151.16666072,0.00026673,2]
[355138529,1740934258737,-519.18562061,0.00026673,2]
[355138532,1740934258752,-152.13353015,0.00026673,2]
[355138533,1740934258764,-153.61803151,0.00026673,2]
[355138536,1740934258775,-500.0,0.00026673,2]
[355138538,1740934258787,-500.6017528,0.00026673,2]
[355138540,1740934258799,-470.01,0.0002673,2]
[355138542,1740934258808,-612.24404387,0.00026797,4]
[355138544,1740934258816,-7965.96944,0.00026804,2]
[355138546,1740934258825,-3521.23862221,0.0002682,2]
[355138548,1740934258834,-470.01,0.00026861,2]
[355138550,1740934258844,-1876.76,0.00026919,2]
[355138552,1740934258853,-1549.45,0.00026919,2]
[355138554,1740934258864,-500.0,0.00026919,2]
[355138556,1740934258874,-1640.73,0.00026919,2]
[355138558,1740934258885,-735.42,0.00026919,2]
[355138560,1740934258895,-1038.58,0.00026919,2]
[355138562,1740934258904,-1324.37,0.00026919,2]
[355138564,1740934258915,-1030.42,0.00026919,2]
[355138566,1740934258925,-1008.61,0.00026919,2]
[355138568,1740934258936,-1220.49,0.00026919,2]
[355138570,1740934258946,-974.65,0.00026919,2]
[355138572,1740934258957,-796.26,0.00026919,2]
[355138575,1740934258966,-1883.74,0.00026919,2]
[355138576,1740934258974,-1450.26,0.00026919,2]
[355138578,1740934258984,-500.0,0.00026919,2]
[355138580,1740934258997,-1000.0,0.00026919,2]
[355138583,1740934259007,-1403.46,0.00026919,2]
[355138585,1740934259018,-500.0,0.00026919,2]
[355138587,1740934259028,-500.0,0.00026919,2]
[355138589,1740934259038,-746.03,0.00026919,2]
[355138591,1740934259049,-816.44,0.00026919,2]
[355138593,1740934259059,-1361.09,0.00026919,2]
[355138595,1740934259070,-500.0,0.00026919,2]
[355138597,1740934259081,-500.0,0.00026919,2]
[355138599,1740934259093,-500.0,0.00026919,2]
[355138601,1740934259104,-971.76,0.00026919,2]
[355138603,1740934259113,-1747.03,0.00026919,2]
[355138605,1740934259122,-1287.02,0.00026919,2]
[355138607,1740934259132,-863.73,0.00026919,2]
[355138609,1740934259143,-500.0,0.00026919,2]
[355138611,1740934259153,-735.96,0.00026919,2]
[355138613,1740934259164,-905.51,0.00026919,2]
[355138615,1740934259174,-982.53,0.00026919,2]
[355138617,1740934259185,-1390.21,0.00026919,2]
[355138619,1740934259195,-595.81,0.00026919,2]
[355138621,1740934259204,-583.19,0.00026919,2]
[355138623,1740934259214,-414.46,0.00026919,2]
[355138625,1740934259223,-598.39,0.00026919,2]
[355138627,1740934259231,-500.0,0.00026919,2]
[355138629,1740934259243,-1233.81,0.00026919,2]
[355138631,1740934259252,-500.0,0.00026919,2]
[355138633,1740934259263,-2920.05,0.00026919,2]
[355138635,1740934259271,-890.18,0.00026919,2]
[355138637,1740934259281,-500.0,0.00026919,2]
[355138639,1740934259292,-4216.33,0.00026919,2]
[355138641,1740934259302,-825.61,0.00026919,2]
[355138643,1740934259313,-1005.08,0.00026919,2]
[355138645,1740934259323,-500.0,0.00026919,2]
[355138647,1740934259333,-721.2,0.00026919,2]
[355138649,1740934259342,-500.0,0.00026919,2]
[355138651,1740934259352,-500.0,0.00026919,2]
[355138653,1740934259363,-3081.8,0.00026919,2]
[355138655,1740934259373,-651.66,0.00026919,2]
[355138657,1740934259383,-601.32,0.0002692,2]
[355138659,1740934259394,-500.0,0.0002692,2]
[355138661,1740934259404,-582.32,0.0002692,2]
[355138663,1740934259414,-984.08,0.0002692,2]
[355138665,1740934259425,-500.0,0.0002692,2]
[355138667,1740934259436,-500.0,0.0002692,2]
[355138669,1740934259445,-975.84,0.0002692,2]
[355138671,1740934259454,-500.0,0.0002692,2]
[355138673,1740934259464,-596.68,0.0002692,2]
[355138675,1740934259473,-500.0,0.0002692,2]
[355138677,1740934259484,-500.0,0.0002692,2]
[355138679,1740934259498,-239.01764879,0.0002692,2]
[355138681,1740934259508,-649.95,0.0002692,2]
[355138683,1740934259518,-500.0,0.0002692,2]
[355138685,1740934259528,-913.81,0.0002692,2]
[355138687,1740934259538,-500.0,0.0002692,2]
[355138689,1740934259549,-826.37,0.0002692,2]
[355138691,1740934259559,-500.0,0.0002692,2]
[355138693,1740934259568,-523.21,0.0002692,2]
[355138695,1740934259578,-500.0,0.0002692,2]
[355138697,1740934259589,-500.0,0.0002692,2]
[355138699,1740934259599,-500.0,0.0002692,2]
[355138701,1740934259610,-500.0,0.0002692,2]
[355138703,1740934259620,-500.0,0.0002692,2]
[355138705,1740934259631,-500.0,0.0002692,2]
[355138707,1740934259640,-652.27,0.0002692,2]
[355138709,1740934259649,-603.66,0.0002692,2]
[355138711,1740934259659,-500.0,0.0002692,2]
[355138713,1740934259669,-500.0,0.0002692,2]
[355138715,1740934259680,-959.87,0.0002692,2]
[355138717,1740934259691,-500.0,0.0002692,2]
[355138719,1740934259701,-273.088224,0.0002692,2]
[355138721,1740934259711,-500.0,0.0002692,2]
[355138723,1740934259724,-500.0,0.0002692,2]
[355138725,1740934259735,-500.0,0.0002692,2]
[355138727,1740934259748,-500.0,0.0002692,2]
[355138729,1740934259759,-500.0,0.0002692,2]
[355138731,1740934259770,-500.0,0.0002692,2]
[355138734,1740934259909,-553.49,0.0002692,2]
[355138737,1740934259935,-500.0,0.0002692,2]
[355138739,1740934259945,-500.0,0.0002692,2]
[355138741,1740934259956,-500.0,0.0002692,2]
[355138743,1740934259966,-500.0,0.0002692,2]
[355138745,1740934259976,-490.051962,0.0002692,2]
[355138747,1740934259986,-586.59,0.0002692,2]
[355138749,1740934259999,-500.0,0.0002692,2]
[355138751,1740934260009,-500.0,0.0002692,2]
[355138753,1740934260019,-612.36,0.0002692,2]
[355138755,1740934260029,-500.0,0.0002692,2]
[355138757,1740934260040,-500.0,0.0002692,2]
[355138759,1740934260049,-500.0,0.0002692,2]
[355138761,1740934260059,-500.0,0.0002692,2]
[355138763,1740934260069,-500.0,0.0002692,2]
[355138765,1740934260079,-672.77,0.0002692,2]
[355138767,1740934260088,-645.05,0.0002692,2]
[355138769,1740934260098,-500.0,0.0002692,2]
[355138771,1740934260107,-500.0,0.0002692,2]
[355138772,1740934260117,-500.0,0.0002692,2]
[355138774,1740934260127,-500.0,0.0002692,2]
[355138777,1740934260138,-901.95,0.0002692,2]
[355138778,1740934260148,-1081.17,0.0002692,2]
[355138781,1740934260158,-500.0,0.0002692,2]
[355138783,1740934260168,-500.0,0.0002692,2]
[355138784,1740934260177,-500.0,0.0002692,2]
[355138787,1740934260187,-500.0,0.0002692,2]
[355138788,1740934260197,-839.39,0.0002692,2]
[355138790,1740934260208,-500.0,0.0002692,2]
[355138792,1740934260218,-500.0,0.0002692,2]
[355138794,1740934260228,-500.0,0.0002692,2]
[355138796,1740934260238,-500.0,0.0002692,2]
[355138798,1740934260251,-500.0,0.0002692,2]
[355138800,1740934260261,-500.0,0.0002692,2]
[355138802,1740934260272,-1654.66,0.0002692,2]
[355138804,1740934260282,-500.0,0.0002692,2]
[355138806,1740934260292,-500.0,0.0002692,2]
[355138808,1740934260302,-500.0,0.0002692,2]
[355138810,1740934260312,-500.0,0.0002692,2]
[355138812,1740934260321,-500.0,0.0002692,2]
[355138814,1740934260331,-500.0,0.0002692,2]
[355138816,1740934260340,-500.0,0.0002692,2]
[355138818,1740934260351,-712.05,0.0002692,2]
[355138820,1740934260360,-500.0,0.0002692,2]
[355138822,1740934260370,-959.72,0.0002692,2]
[355138824,1740934260382,-500.0,0.0002692,2]
[355138826,1740934260393,-500.0,0.0002692,2]
[355138828,1740934260403,-500.0,0.0002692,2]
[355138830,1740934260412,-500.0,0.0002692,2]
[355138832,1740934260422,-500.0,0.0002692,2]
[355138834,1740934260431,-500.0,0.0002692,2]
[355138836,1740934260441,-500.0,0.0002692,2]
[355138838,1740934260451,-1209.06,0.0002692,2]
[355138840,1740934260460,-500.0,0.0002692,2]
[355138842,1740934260470,-500.0,0.0002692,2]
[355138844,1740934260480,-500.0,0.0002692,2]
[355138846,1740934260489,-500.0,0.0002692,2]
[355138848,1740934260503,-722.24,0.0002692,2]
[355138850,1740934260512,-500.0,0.0002692,2]
[355138852,1740934260522,-1134.81,0.0002692,2]
[355138854,1740934260532,-1023.26,0.0002692,2]
[355138856,1740934260541,-500.0,0.0002692,2]
[355138858,1740934260551,-500.0,0.0002692,2]
[355138860,1740934260560,-500.0,0.0002692,2]
[355138862,1740934260570,-500.0,0.0002692,2]
[355138864,1740934260580,-500.0,0.0002692,2]
[355138866,1740934260589,-1428.61,0.0002692,2]
[355138868,1740934260599,-500.0,0.0002692,2]
[355138870,1740934260612,-500.0,0.0002692,2]
[355138872,1740934260624,-500.0,0.0002692,2]
[355138874,1740934260637,-500.0,0.0002692,2]
[355138876,1740934260647,-500.46,0.0002692,2]
[355138878,1740934260658,-500.0,0.0002692,2]
[355138880,1740934260667,-500.0,0.0002692,2]
[355138882,1740934260677,-500.0,0.0002692,2]
[355138884,1740934260687,-500.0,0.0002692,2]
[355138886,1740934260701,-2956.28,0.0002692,2]
[355138889,1740934260712,-500.0,0.0002692,2]
[355138891,1740934260723,-500.0,0.0002692,2]
[355138893,1740934260735,-1296.11,0.0002692,2]
[355138895,1740934260749,-812.76,0.0002692,2]
[355138897,1740934260759,-500.0,0.0002692,2]
[355138899,1740934260771,-500.0,0.0002692,2]
[355138901,1740934260782,-500.0,0.0002692,2]
[355138903,1740934260792,-2610.05,0.0002692,2]
[355138905,1740934260802,-500.0,0.0002692,2]
[355138907,1740934260812,-1547.24,0.0002692,2]
[355138909,1740934260823,-744.75,0.0002692,2]
[355138911,1740934260834,-500.0,0.0002692,2]
[355138913,1740934260845,-1771.49,0.0002692,2]
[355138915,1740934260855,-568.26,0.0002692,2]
[355138917,1740934260866,-500.0,0.0002692,2]
[355138919,1740934260876,-5169.12,0.0002692,2]
[355138921,1740934260885,-2526.23,0.0002692,2]
[355138923,1740934260897,-500.0,0.0002692,2]
[355138925,1740934260907,-500.0,0.0002692,2]
[355138927,1740934260917,-500.0,0.0002692,2]
[355138929,1740934260927,-655.54,0.0002692,2]
[355138931,1740934260937,-2592.13,0.0002692,2]
[355138933,1740934260947,-500.0,0.0002692,2]
[355138935,1740934260957,-500.0,0.0002692,2]
[355138937,1740934260965,-500.0,0.0002692,2]
[355138939,1740934260974,-564.51,0.0002692,2]
[355138941,1740934260984,-500.0,0.0002692,2]
[355138943,1740934260997,-500.0,0.0002692,2]
[355138944,1740934261007,-2451.93,0.0002692,2]
[355138946,1740934261016,-2438.01,0.0002692,2]
[355138948,1740934261027,-500.0,0.0002692,2]
[355138950,1740934261037,-500.0,0.0002692,2]
[355138952,1740934261048,-500.0,0.0002692,2]
[355138954,1740934261058,-500.0,0.0002692,2]
[355138957,1740934261069,-1213.6,0.0002692,2]
[355138959,1740934261080,-500.0,0.0002692,2]
[355138960,1740934261090,-691.28,0.0002692,2]
[355138962,1740934261100,-500.0,0.0002692,2]
[355138964,1740934261110,-500.0,0.0002692,2]
[355138967,1740934261120,-2332.25,0.0002692,2]
[355138969,1740934261131,-500.0,0.0002692,2]
[355138970,1740934261141,-500.0,0.0002692,2]
[355138972,1740934261150,-500.0,0.0002692,2]
[355138974,1740934261160,-500.0,0.0002692,2]
[355138976,1740934261170,-500.0,0.0002692,2]
[355138978,1740934261180,-2311.03,0.0002692,2]
[355138980,1740934261190,-500.0,0.0002692,2]
[355138982,1740934261200,-500.0,0.0002692,2]
[355138984,1740934261210,-1410.42,0.0002692,2]
[355138986,1740934261220,-500.0,0.0002692,2]
[355138988,1740934261230,-1370.74,0.0002692,2]
[355138990,1740934261239,-500.0,0.0002692,2]
[355138992,1740934261252,-1057.92,0.0002692,2]
[355138994,1740934261262,-500.0,0.0002692,2]
[355138997,1740934261273,-2057.85,0.0002692,2]
[355138999,1740934261283,-500.0,0.0002692,2]
[355139001,1740934261294,-500.0,0.0002692,2]
[355139002,1740934261304,-964.74,0.0002692,2]
[355139005,1740934261313,-500.0,0.0002692,2]
[355139007,1740934261323,-500.0,0.0002692,2]
[355139009,1740934261332,-500.0,0.0002692,2]
[355139011,1740934261343,-2075.85,0.0002692,2]
[355139013,1740934261354,-500.0,0.0002692,2]
[355139015,1740934261365,-500.0,0.0002692,2]
[355139017,1740934261375,-500.0,0.0002692,2]
[355139020,1740934261385,-500.0,0.0002692,2]
[355139022,1740934261396,-764.34,0.0002692,2]
[355139024,1740934261406,-1881.44,0.0002692,2]
[355139026,1740934261417,-2611.42,0.0002692,2]
[355139028,1740934261428,-500.0,0.0002692,2]
[355139030,1740934261438,-500.0,0.0002692,2]
[355139032,1740934261449,-593.67,0.0002692,2]
[355139034,1740934261459,-2594.09,0.0002692,2]
[355139036,1740934261469,-500.0,0.0002692,2]
[355139038,1740934261479,-500.0,0.0002692,2]
[355139040,1740934261490,-500.0,0.0002692,2]
[355139041,1740934261504,-597.12853527,0.0002692,2]
[355139043,1740934261515,-500.0,0.0002692,2]
[355139046,1740934261525,-500.0,0.0002692,2]
[355139048,1740934261537,-788.64,0.0002692,2]
[355139050,1740934261549,-500.0,0.0002692,2]
[355139052,1740934261558,-631.11,0.0002692,2]
[355139054,1740934261569,-3199.91,0.0002692,2]
[355139056,1740934261580,-500.0,0.0002692,2]
[355139058,1740934261590,-500.0,0.0002692,2]
[355139060,1740934261601,-200.0,0.0002692,2]
[355139062,1740934261610,-500.0,0.0002692,2]
[355139064,1740934261620,-1556.3,0.0002692,2]
[355139066,1740934261630,-726.48,0.0002692,2]
[355139068,1740934261640,-500.0,0.0002692,2]
[355139070,1740934261648,-500.0,0.0002692,2]
[355139071,1740934261657,-500.0,0.0002692,2]
[355139074,1740934261668,-500.0,0.0002692,2]
[355139076,1740934261677,-500.0,0.0002692,2]
[355139078,1740934261688,-531.3,0.0002692,2]
[355139080,1740934261699,-500.0,0.0002692,2]
[355139082,1740934261709,-500.0,0.0002692,2]
[355139084,1740934261719,-500.0,0.0002692,2]
[355139086,1740934261733,-2236.18,0.0002692,2]
[355139088,1740934261746,-380.5327962,0.0002692,2]
[355139089,1740934261757,-853.87,0.0002692,2]
[355139091,1740934261767,-500.0,0.0002692,2]
[355139105,1740934261925,-500.0,0.0002692,2]
[355139106,1740934261936,-500.0,0.0002692,2]
[355139107,1740934261947,-500.0,0.0002692,2]
[355139108,1740934261958,-500.0,0.0002692,2]
[355139109,1740934261969,-500.0,0.0002692,2]
[355139110,1740934261979,-500.0,0.0002692,2]
[355139111,1740934261990,-500.0,0.0002692,2]
[355139112,1740934262003,-1556.69,0.0002692,2]
[355139113,1740934262012,-1959.36,0.0002692,2]
[355139115,1740934262023,-500.0,0.0002692,2]
[355139116,1740934262040,-500.0,0.0002692,2]
[355139117,1740934262056,-639.1,0.0002692,2]
[355139118,1740934262067,-500.0,0.0002692,2]
[355139119,1740934262077,-1522.47,0.0002692,2]
[355139120,1740934262087,-633.68,0.0002692,2]
[355139121,1740934262099,-500.0,0.0002692,2]
[355139122,1740934262110,-500.0,0.0002692,2]
[355139123,1740934262120,-500.0,0.0002692,2]
[355139124,1740934262131,-500.0,0.0002692,2]
[355139125,1740934262142,-537.17,0.0002692,2]
[355139126,1740934262151,-500.0,0.0002692,2]
[355139127,1740934262159,-500.0,0.0002692,2]
[355139128,1740934262169,-500.0,0.0002692,2]
[355139129,1740934262177,-500.0,0.0002692,2]
[355139130,1740934262186,-346.54,0.0002692,2]
[355139131,1740934262196,-694.32,0.0002692,2]
[355139133,1740934262206,-500.0,0.0002692,2]
[355139135,1740934262216,-500.0,0.0002692,2]
[355139137,1740934262226,-500.0,0.0002692,2]
[355139139,1740934262235,-500.0,0.0002692,2]
[355139140,1740934262251,-500.0,0.0002692,2]
[355139141,1740934262261,-500.0,0.0002692,2]
[355139142,1740934262271,-1357.3,0.0002692,2]
[355139143,1740934262280,-500.0,0.0002692,2]
[355139144,1740934262290,-615.16,0.0002692,2]
[355139146,1740934262300,-500.0,0.0002692,2]
[355139148,1740934262310,-500.0,0.0002692,2]
[355139150,1740934262320,-500.0,0.0002692,2]
[355139152,1740934262330,-500.0,0.0002692,2]
[355139154,1740934262340,-500.0,0.0002692,2]
[355139156,1740934262351,-500.0,0.0002692,2]
[355139158,1740934262361,-588.66,0.0002692,2]
[355139160,1740934262371,-500.0,0.0002692,2]
[355139162,1740934262380,-173.73304024,0.0002692,2]
[355139164,1740934262389,-500.0,0.0002692,2]
[355139166,1740934262399,-500.0,0.0002692,2]
[355139168,1740934262409,-331.03930702,0.0002692,2]
[355139170,1740934262420,-1763.62,0.0002692,2]
[355139172,1740934262430,-1461.0,0.0002692,2]
[355139174,1740934262440,-500.0,0.0002692,2]
[355139176,1740934262451,-500.0,0.0002692,2]
[355139178,1740934262460,-500.0,0.0002692,2]
[355139180,1740934262470,-500.0,0.0002692,2]
[355139182,1740934262480,-510.32,0.0002692,2]
[355139184,1740934262490,-500.0,0.0002692,2]
[355139185,1740934262504,-781.22,0.0002692,2]
[355139186,1740934262514,-500.0,0.0002692,2]
[355139187,1740934262524,-974.41,0.0002692,2]
[355139188,1740934262534,-517.89530473,0.0002692,2]
[355139189,1740934262544,-500.0,0.0002692,2]
[355139190,1740934262555,-1077.96,0.0002692,2]
[355139191,1740934262566,-500.0,0.0002692,2]
[355139192,1740934262576,-496.0,0.0002692,2]
[355139193,1740934262587,-500.0,0.0002692,2]
[355139194,1740934262597,-500.0,0.0002692,2]
[355139195,1740934262608,-774.86,0.0002692,2]
[355139196,1740934262618,-500.0,0.0002692,2]
[355139197,1740934262628,-500.0,0.0002692,2]
[355139198,1740934262638,-500.0,0.0002692,2]
[355139199,1740934262647,-1184.41,0.0002692,2]
[355139200,1740934262657,-500.0,0.0002692,2]